bitfinex-derivatives/quotes_ETHF0:USTF0_20251229
["timestamp","ask_amount","ask_price","bid_price","bid_amount"]
[1767014064028,0.17058,2934.6,2932.8,5.188]
[1767014064225,0.17059,2934.5,2932.8,5.188]
[1767014064816,0.0022042,2934.6,2932.8,5.188]
[1767014065022,0.17063,2933.7,2932.5,0.00511368]
[1767014066127,0.17059,2934.4,2932.5,0.00511368]
[1767014066334,1.07989917,2934.3,2932.5,0.00511368]
[1767014066638,0.17059,2934.4,2932.5,0.00511368]
[1767014066836,1.07963019,2934.3,2932.5,0.00511368]
[1767014067031,0.17059,2934.4,2932.7,1.21785033]
[1767014067534,0.17059,2934.4,2932.5,0.00511368]
[1767014070137,0.17059,2934.4,2932.6,3.289]
[1767014074629,0.17059,2934.4,2932.8,1.21785033]
[1767014077240,0.17059,2934.4,2932.5,0.00511368]
[1767014077442,0.17059,2934.4,2932.6,5.183]
[1767014077740,0.17059,2934.4,2932.6,9.69859821]
[1767014081043,0.17059,2934.3,2932.6,9.69859821]
[1767014090138,0.17059,2934.3,2932.8,1.21785033]
[1767014090734,0.17059,2934.3,2932.9,4.41425568]
[1767014091032,0.0022042,2934.6,2932.9,4.41425568]
[1767014091438,1.08277055,2934.5,2932.9,4.41425568]
[1767014091645,0.0022042,2934.6,2932.9,4.41425568]
[1767014091838,1.0827367,2934.5,2932.9,4.41425568]
[1767014092035,0.0022042,2934.6,2932.9,4.41425568]
[1767014092252,1.0827367,2934.5,2932.9,4.41425568]
[1767014092456,0.0022042,2934.6,2932.9,4.41425568]
[1767014092457,0.1706,2934.3,2932.9,4.41425568]
[1767014100247,0.0022042,2934.6,2932.9,4.41425568]
[1767014100448,1.86375102,2936.1,2934.1,1.21785033]
[1767014100652,0.1705,2935.9,2934.8,0.00511368]
[1767014100952,0.17053,2935.4,2934.6,5.203]
[1767014101451,0.17053,2935.4,2934.6,5.20641634]
[1767014102149,0.00511368,2935.3,2934.7,0.00511368]
[1767014104056,0.00511368,2935.3,2934.6,0.00341634]
[1767014104253,0.00511368,2935.3,2933.4,0.17064]
[1767014104254,0.17907002,2935.3,2933.9,5.201]
[1767014105064,0.17907002,2935.3,2934.3,0.00511368]
[1767014105353,3.002e-05,2935.3,2934.3,0.00511368]
[1767014106457,1.368e-05,2935.1,2934.3,0.00511368]
[1767014108764,1.368e-05,2935.1,2934.4,5.199]
[1767014112457,1.368e-05,2935.1,2934.5,5.198]
[1767014114462,1.368e-05,2935.1,2934.5,6.41518485]
[1767014115055,0.17048,2936.3,2934.8,1.21718485]
[1767014115254,0.17048,2936.3,2935.1,1.21718485]
[1767014115657,0.17048,2936.3,2935.4,1.21718485]
[1767014116056,0.17048,2936.2,2935.1,1.21718485]
[1767014116560,0.17048,2936.2,2935.4,0.00511368]
[1767014116957,0.17048,2936.2,2935.4,1.22229853]
[1767014117762,0.17048,2936.2,2935.4,0.00511368]
[1767014120065,0.05929,2937.2,2935.7,1.21718485]
[1767014120362,0.17047,2936.5,2935.5,3.737]
[1767014120558,0.17048,2936.4,2935.5,3.737]
[1767014120756,0.17049,2936.2,2935.4,0.00511368]
[1767014120960,0.1705,2936.0,2935.4,0.00511368]
[1767014121164,0.1705,2936.0,2934.8,1.21718485]
[1767014122156,0.00511368,2935.7,2935.1,0.00511368]
[1767014122755,0.00511368,2935.7,2934.1,1.17451729]
[1767014123065,0.17053,2935.5,2934.1,5.195]
[1767014123858,0.17053,2935.5,2934.5,0.00511368]
[1767014126273,40.8,2936.6,2934.6,1.75236026]
[1767014126568,0.17048,2936.2,2934.6,1.75236026]
[1767014127472,1.368e-05,2935.7,2934.6,1.75236026]
[1767014127674,0.17048,2936.2,2934.6,1.75236026]
[1767014129466,0.17045,2936.8,2935.2,1.75236026]
[1767014129665,0.17045,2936.8,2935.2,6.94436026]
[1767014130073,0.17045,2936.8,2935.2,5.192]
[1767014130969,0.17046,2936.7,2935.1,5.191]
[1767014131174,0.17046,2936.6,2935.6,0.00511368]
[1767014133466,0.17047,2936.5,2935.6,0.00511368]
[1767014140278,0.17047,2936.4,2935.6,0.00511368]
[1767014140777,0.17047,2936.4,2935.0,5.19]
[1767014141779,0.00511368,2936.0,2935.4,0.00511368]
[1767014144282,0.17047,2936.4,2935.4,0.00511368]
[1767014144481,0.17047,2936.4,2935.7,1.21624911]
[1767014151286,0.17047,2936.4,2936.0,1.21624911]
[1767014151586,0.17047,2936.6,2936.0,1.22057772]
[1767014152678,0.17047,2936.5,2936.0,1.22057772]
[1767014153189,0.17047,2936.4,2935.8,1.21624911]
[1767014154380,0.17047,2936.4,2935.8,1.21879213]
[1767014154883,0.00296921,2936.5,2935.4,0.00511368]
[1767014155286,0.17047,2936.4,2935.5,1.21624911]
[1767014155587,0.17049,2936.2,2935.4,0.00511368]
[1767014155989,0.17049,2936.2,2935.4,0.00858072]
[1767014158588,0.17049,2936.1,2935.4,0.00858072]
[1767014161690,0.01070208,2935.8,2935.4,0.00858072]
[1767014162189,0.17049,2936.1,2935.5,1.21624911]
[1767014162780,0.01067453,2935.8,2935.4,0.00858072]
[1767014162982,0.01067453,2935.8,2934.7,1.21624911]
[1767014163183,0.02137661,2935.3,2934.6,1.21624911]
[1767014163581,0.02137661,2935.3,2934.0,6.56385911]
[1767014163582,0.02137661,2935.3,2934.2,1.21624911]
[1767014163785,0.03205195,2934.8,2934.2,1.21624911]
[1767014163989,0.03716563,2934.8,2934.2,1.22554781]
[1767014164189,0.17053,2935.4,2934.5,1.21624911]
[1767014164389,1.21624911,2935.4,2934.2,0.0092987]
[1767014164589,0.17058,2934.6,2933.5,1.21624911]
[1767014165496,0.02140416,2934.1,2933.8,0.00511368]
[1767014165793,0.02391365,2934.1,2933.8,0.00511368]
[1767014165989,0.03210624,2934.0,2933.8,0.00511368]
[1767014166193,0.00250949,2934.1,2933.8,0.00511368]
[1767014166387,0.01070208,2933.9,2933.8,0.00511368]
[1767014166586,0.00250949,2934.1,2933.8,0.00511368]
[1767014166782,0.00511368,2934.3,2933.8,0.00511368]
[1767014166988,42.02813694,2935.9,2933.8,1.75899609]
[1767014166989,0.17055,2935.1,2933.8,1.75899609]
[1767014167187,0.17055,2935.0,2933.8,0.00511368]
[1767014167387,0.01067741,2934.4,2933.8,0.00511368]
[1767014167793,0.01469238,2934.4,2933.8,0.00511368]
[1767014167994,0.17055,2935.0,2933.8,0.00511368]
[1767014168196,0.17055,2935.0,2933.8,1.75899609]
[1767014168991,0.17431235,2935.0,2933.8,1.75899609]
[1767014170794,0.17431235,2935.0,2933.8,0.00511368]
[1767014171695,0.05928101,2937.7,2934.9,1.75388241]
[1767014171992,0.17045,2936.8,2935.0,5.175]
[1767014172598,0.174419,2936.8,2935.0,5.175]
[1767014172799,0.174419,2936.8,2935.1,4.4304411]
[1767014172800,0.003969,2936.8,2935.1,4.4304411]
[1767014172998,0.003969,2936.8,2935.7,0.00511368]
[1767014173199,0.003969,2936.8,2935.7,0.00880168]
[1767014175998,0.17041,2937.5,2935.7,0.00880168]
[1767014176602,0.17041,2937.5,2935.8,2.764]
[1767014177197,0.17041,2937.5,2935.7,0.00880168]
[1767014177500,0.17041,2937.5,2935.8,5.173]
[1767014179207,0.17041,2937.5,2935.9,5.171]
[1767014179801,0.75230476,2937.9,2935.9,5.171]
[1767014180105,0.75230476,2937.9,2935.7,0.00880168]
[1767014180106,0.75230476,2937.9,2936.1,0.17049]
[1767014180301,0.75230476,2937.9,2936.2,5.171]
[1767014182408,0.75230476,2937.9,2936.3,4.42913577]
[1767014182906,0.75230476,2937.9,2936.3,4.59961577]
[1767014183108,0.75230476,2937.9,2936.4,5.17]
[1767014185111,0.75230476,2937.9,2936.3,0.17048]
[1767014185311,0.75230476,2937.9,2936.5,5.169]
[1767014186220,0.75230476,2937.9,2936.3,0.17048]
[1767014186516,0.75230476,2937.9,2936.6,5.168]
[1767014187510,0.92269476,2937.9,2936.6,5.168]
[1767014189019,0.92269476,2937.9,2936.3,0.17048]
[1767014189218,0.92269476,2937.9,2936.4,5.167]
[1767014191414,0.17039,2937.8,2936.3,0.17048]
[1767014191619,0.17039,2937.8,2936.4,5.165]
[1767014199139,0.17039,2937.8,2936.3,0.17048]
[1767014199435,0.17039,2937.8,2936.4,5.162]
[1767014200539,0.17039,2937.8,2936.5,5.161]
[1767014201742,0.17039,2937.8,2936.6,5.161]
[1767014205035,0.17039,2937.8,2936.3,0.17048]
[1767014205236,0.17039,2937.8,2936.4,5.16]
[1767014207536,0.1704,2937.6,2935.8,0.17051]
[1767014207736,0.1704,2937.6,2935.9,5.159]
[1767014208644,0.75230476,2937.9,2936.5,1.21526064]
[1767014208842,0.75230476,2937.9,2936.9,1.21526064]
[1767014210542,0.1704,2937.6,2936.9,1.21526064]
[1767014211135,0.05926113,2938.8,2937.5,1.21526064]
[1767014211339,0.05926113,2938.8,2937.9,0.00511368]
[1767014211535,0.05926113,2938.8,2937.9,0.00858713]
[1767014212141,0.17033,2938.8,2937.9,0.00858713]
[1767014213238,40.8,2939.3,2937.9,0.00858713]
[1767014213545,0.97336456,2939.2,2937.9,0.00858713]
[1767014213737,0.97336456,2939.1,2937.9,0.00858713]
[1767014213937,40.8,2939.3,2937.9,0.00858713]
[1767014214139,0.9748812,2939.2,2937.9,0.00858713]
[1767014214442,0.17034,2938.7,2937.9,0.00858713]
[1767014215137,40.8,2939.3,2937.9,0.00858713]
[1767014215338,0.17031,2939.3,2937.9,0.00858713]
[1767014215538,0.17031,2939.2,2937.9,0.00858713]
[1767014216049,0.17032,2939.1,2937.9,0.00858713]
[1767014216641,0.17032,2939.0,2937.9,0.00858713]
[1767014222249,40.8,2939.4,2937.9,0.00858713]
[1767014222451,0.97284495,2939.3,2937.4,2.361]
[1767014222653,40.80374133,2939.4,2937.4,2.361]
[1767014222955,0.97285824,2939.3,2937.4,2.361]
[1767014223154,40.80374133,2939.4,2937.4,2.361]
[1767014223354,0.00508439,2938.7,2937.4,0.00387236]
[1767014224058,0.17036,2938.3,2936.5,0.17046]
[1767014224556,0.00508439,2938.7,2935.9,4.27818772]
[1767014224763,0.17038,2938.0,2935.9,5.151]
[1767014225151,0.17038,2938.0,2935.9,5.15421555]
[1767014225653,0.17038,2938.0,2936.7,0.00510491]
[1767014227858,0.17039,2937.9,2936.7,0.00510491]
[1767014228156,0.17039,2937.8,2936.7,0.00510491]
[1767014228752,0.1704,2937.6,2935.9,0.00321555]
[1767014229860,0.00510491,2937.0,2936.5,0.00510491]
[1767014230060,0.00865485,2937.0,2936.5,0.00510491]
[1767014235765,0.00865485,2937.0,2936.5,4.91e-06]
[1767014237958,0.17046,2936.7,2935.9,0.00321555]
[1767014239060,0.17046,2936.7,2935.0,5.147]
[1767014239866,0.17046,2936.7,2935.6,0.00342376]
[1767014242361,0.3405,2936.6,2935.6,0.00342376]
[1767014254684,0.3405,2936.6,2935.7,1.21628062]
[1767014255887,0.3405,2936.6,2935.6,0.00342376]
[1767014256087,0.3405,2936.6,2935.7,1.21628062]
[1767014256783,1.21628062,2936.1,2935.0,0.00257523]
[1767014257182,0.3405,2936.6,2935.2,1.21628062]
[1767014257382,0.17047,2936.4,2935.5,1.21628062]
[1767014257583,0.17047,2936.4,2935.2,1.21628062]
[1767014257784,0.17047,2936.4,2935.0,0.00257523]
[1767014258090,0.17047,2936.4,2935.3,1.21628062]
[1767014258590,0.17047,2936.4,2935.0,1.21885585]
[1767014259691,1.21628062,2936.3,2935.0,0.00257523]
[1767014260083,1.21628062,2936.0,2934.4,1.96858538]
[1767014260278,0.00510491,2935.5,2934.4,1.96858538]
[1767014260483,0.00510491,2935.5,2934.4,0.75230476]
[1767014260979,0.00510491,2935.5,2934.4,0.75662034]
[1767014261587,0.00510491,2935.5,2934.5,1.21628062]
[1767014261786,0.3406,2935.4,2934.8,1.21628062]
[1767014261990,0.3406,2935.4,2934.7,1.21628062]
[1767014262386,0.00510491,2935.5,2935.0,1.21628062]
[1767014262579,0.17048,2936.2,2935.3,1.21628062]
[1767014263585,0.00510491,2936.0,2935.5,4.91e-06]
[1767014263790,0.00510491,2936.0,2935.0,1.21628062]
[1767014264292,0.17560491,2936.0,2934.5,1.21628062]
[1767014264893,0.17560491,2936.0,2934.8,1.21628062]
[1767014266989,0.3403,2935.9,2934.8,1.21628062]
[1767014267188,0.5108,2935.9,2934.8,1.21628062]
[1767014267584,0.5108,2935.9,2934.4,0.75662034]
[1767014267882,0.5108,2935.9,2934.6,1.21628062]
[1767014268794,0.5108,2935.9,2934.9,1.21628062]
[1767014270594,0.17051,2935.8,2934.9,1.21628062]
[1767014271792,0.17054,2935.2,2934.4,0.75662034]
[1767014271996,0.17056,2935.0,2934.4,0.75662034]
[1767014273597,0.17052,2935.6,2934.4,0.75662034]
[1767014273796,0.17052,2935.5,2934.4,0.75662034]
[1767014274590,0.17053,2935.4,2934.4,0.75662034]
[1767014277401,1.21628062,2935.6,2934.4,0.75662034]
[1767014278495,0.17055,2935.2,2934.4,0.75662034]
[1767014279305,0.17055,2935.1,2934.4,0.75662034]
[1767014279699,0.17055,2935.0,2934.4,0.75662034]
[1767014280307,0.17056,2934.9,2934.4,0.75662034]
[1767014280602,0.17056,2934.9,2932.9,0.17068]
[1767014280603,0.17057,2934.7,2933.0,1.21628062]
[1767014280803,0.00510491,2934.1,2932.3,4.44889772]
[1767014281103,0.00510491,2934.1,2933.0,1.21628062]
[1767014281403,1.22138553,2934.1,2932.5,1.21628062]
[1767014281708,1.22138553,2934.1,2932.5,1.21915328]
[1767014281911,1.22138553,2934.1,2932.5,0.00287266]
[1767014282201,0.17064,2933.5,2932.7,1.21628062]
[1767014282596,0.17064,2933.5,2932.5,0.00287266]
[1767014284911,0.00510491,2934.1,2932.5,1.75774868]
[1767014285115,0.17571491,2934.1,2932.5,1.75774868]
[1767014285317,0.17062,2933.9,2932.6,5.132]
[1767014286209,0.17063,2933.8,2932.5,5.13487266]
[1767014287102,0.00510491,2934.1,2932.5,0.00287266]
[1767014287305,0.00510491,2934.1,2932.5,5.13487266]
[1767014290216,0.00510491,2934.1,2932.5,0.00287266]
[1767014290410,0.17571491,2934.1,2932.5,0.00287266]
[1767014292518,0.17061,2934.0,2932.5,0.00287266]
[1767014292815,0.17063,2933.7,2932.5,0.00287266]
[1767014301411,0.00510491,2934.1,2932.5,0.00287266]
[1767014301611,0.00510491,2934.1,2932.6,4.50168229]
[1767014302524,0.00510491,2934.1,2933.0,1.2181716]
[1767014302715,0.00510491,2934.1,2933.0,6.3451716]
[1767014303620,0.17058,2934.5,2933.4,1.2181716]
[1767014304526,0.00428946,2934.9,2933.8,1.2181716]
[1767014304720,1.2216651,2935.6,2933.8,1.2181716]
[1767014304920,1.2181716,2936.5,2933.8,1.2181716]
[1767014305121,0.17053,2935.5,2933.8,1.2181716]
[1767014305614,0.00511387,2934.9,2933.8,1.2181716]
[1767014306619,0.00511387,2934.9,2933.7,0.00511387]
[1767014310422,0.51113,2935.4,2933.7,0.00511387]
[1767014311329,0.00511387,2934.8,2933.7,0.00511387]
[1767014311528,0.51113,2935.4,2933.7,0.00511387]
[1767014312027,0.51113,2935.4,2933.7,2.07511387]
[1767014312230,0.51113,2935.4,2933.7,0.00511387]
[1767014312432,0.00511387,2934.8,2933.7,0.00511387]
[1767014320541,0.3407,2934.7,2933.7,0.00511387]
[1767014321130,0.17054,2935.2,2933.7,0.00511387]
[1767014321832,0.00254953,2935.5,2933.7,0.00511387]
[1767014322133,0.00511387,2934.9,2933.8,4.40173141]
[1767014322438,0.00254953,2935.5,2933.8,4.40173141]
[1767014323332,0.00338832,2934.9,2933.8,4.40173141]
[1767014323631,0.00254953,2935.5,2933.9,0.17062]
[1767014324735,0.3405,2935.4,2933.9,0.17062]
[1767014325029,0.17048,2936.3,2933.8,4.40173141]
[1767014325227,0.17048,2936.3,2934.2,2.15759175]
[1767014325430,0.17048,2936.3,2934.3,0.17059]
[1767014325737,1.83213227,2937.7,2934.3,0.17059]
[1767014325738,0.17044,2937.0,2934.6,0.17058]
[1767014325934,0.17044,2936.9,2935.5,0.00511387]
[1767014326126,0.17284325,2936.9,2935.5,0.00873653]
[1767014328328,0.00240325,2936.9,2935.5,0.00873653]
[1767014328736,0.17047,2936.5,2935.1,3.637]
[1767014329635,0.00511387,2936.1,2935.5,0.00511387]
[1767014334138,0.00240325,2936.9,2935.5,0.00511387]
[1767014334642,0.17042,2937.4,2935.6,4.44024323]
[1767014335041,0.17042,2937.4,2935.5,0.00511387]
[1767014335236,0.75230476,2937.9,2935.5,0.00511387]
[1767014335444,0.17043,2937.2,2935.6,4.192]
[1767014335642,0.00241462,2937.2,2935.5,0.00511387]
[1767014335833,0.17046,2936.6,2935.5,0.00511387]
[1767014338654,0.17047,2936.5,2935.5,0.00511387]
[1767014338951,0.00241462,2937.2,2935.5,0.00511387]
[1767014339345,0.17047,2936.6,2935.5,0.00511387]
[1767014340054,0.00241462,2937.2,2935.5,0.00511387]
[1767014340248,0.17047,2936.4,2935.5,0.00511387]
[1767014342355,0.00241462,2937.2,2935.5,0.00511387]
[1767014342356,0.17048,2936.3,2935.5,0.00511387]
[1767014343955,0.17049,2936.2,2935.1,0.00353399]
[1767014344958,0.00511387,2935.9,2935.4,0.00511387]
[1767014347452,0.17046,2936.7,2935.4,0.00511387]
[1767014354163,0.00241462,2937.2,2935.4,0.00511387]
[1767014354364,0.00241462,2937.2,2935.5,4.35727907]
[1767014355162,0.00241462,2937.2,2935.6,5.106]
[1767014355362,0.00241462,2937.2,2935.6,5.27651]
[1767014356564,0.00241462,2937.2,2935.6,7.02705951]
[1767014357266,0.16523,2937.7,2936.1,1.75054951]
[1767014358165,0.16765378,2937.7,2936.1,1.75054951]
[1767014359366,0.1704,2937.6,2935.8,0.1705]
[1767014359572,0.1704,2937.6,2935.9,5.105]
[1767014361671,0.1704,2937.6,2935.8,0.1705]
[1767014361877,0.1704,2937.6,2935.9,4.513]
[1767014368280,0.1704,2937.6,2935.8,0.1705]
[1767014368580,0.1704,2937.6,2936.0,5.1]
[1767014371378,0.17041,2937.5,2935.4,4.28330159]
[1767014371580,0.16765378,2937.7,2935.4,0.00511387]
[1767014371872,0.17044,2937.0,2935.4,0.00511387]
[1767014372472,0.17045,2936.9,2935.4,0.00511387]
[1767014373771,42.55054951,2937.6,2935.4,0.00511387]
[1767014373978,0.97891678,2937.5,2935.4,0.00511387]
[1767014374177,0.97891678,2937.4,2935.4,0.00511387]
[1767014374379,42.55054951,2937.6,2935.4,0.00511387]
[1767014374380,0.17044,2936.9,2935.4,0.00511387]
[1767014376282,0.17045,2936.8,2935.4,0.00511387]
[1767014376781,0.17046,2936.7,2935.4,0.00511387]
[1767014378684,0.17042,2937.3,2935.4,0.00511387]
[1767014378878,0.17042,2937.3,2935.5,1.75054951]
[1767014382482,0.17042,2937.3,2935.4,0.00511387]
[1767014382883,0.17042,2937.3,2936.0,1.21575843]
[1767014385384,0.17042,2937.3,2935.5,5.095]
[1767014385585,0.17042,2937.3,2936.0,1.21575843]
[1767014386785,0.17042,2937.3,2935.5,5.095]
[1767014387083,0.17042,2937.3,2936.1,1.21575843]
[1767014390189,0.17043,2937.2,2936.1,1.21575843]
[1767014391290,0.16765378,2937.7,2935.4,0.00511387]
[1767014391590,0.17043,2937.1,2935.9,1.21575843]
[1767014391788,0.17043,2937.1,2936.2,1.21575843]
[1767014394690,0.17044,2937.0,2936.2,1.21575843]
[1767014394989,0.17045,2936.9,2936.2,1.21575843]
[1767014396596,0.17045,2936.9,2935.4,0.00511387]
[1767014396791,0.17045,2936.9,2935.8,1.21575843]
[1767014398090,0.17045,2936.9,2935.5,5.089]
[1767014398292,0.17045,2936.9,2936.0,1.21575843]
[1767014400495,0.17045,2936.9,2936.3,1.21575843]
[1767014402798,0.17045,2936.9,2935.5,5.089]
[1767014403001,0.17045,2936.9,2935.4,1.2208723]
[1767014403700,0.17045,2936.9,2935.7,1.21575843]
[1767014404498,0.17045,2936.9,2936.0,1.21575843]
[1767014406001,0.17045,2936.9,2935.5,1.21575843]
[1767014406203,1.38620843,2936.9,2935.5,1.21575843]
[1767014406597,0.17045,2936.9,2935.5,1.21575843]
[1767014406903,0.2215,2936.8,2935.8,1.21575843]
[1767014407700,0.39195,2936.8,2935.5,1.21575843]
[1767014408001,0.17047,2936.5,2935.4,0.00511387]
[1767014408300,1.21575843,2936.4,2935.4,0.00511387]
[1767014409200,0.17049,2936.2,2935.4,0.00511387]
[1767014409414,0.2215,2936.8,2935.1,0.00353399]
[1767014409415,1.21575843,2935.7,2935.1,0.00353399]
[1767014409704,0.17051,2935.8,2934.4,1.21575843]
[1767014409900,0.17051,2935.8,2934.7,1.21575843]
[1767014410103,0.17051,2935.8,2935.0,1.21575843]
[1767014410700,0.17051,2935.8,2935.1,0.00511387]
[1767014422521,0.00511387,2936.1,2935.1,0.00511387]
[1767014430531,0.3405,2936.0,2935.1,0.00511387]
[1767014445831,0.3405,2936.0,2935.1,1.387e-05]
[1767014449541,0.00511387,2936.1,2935.1,1.387e-05]
[1767014450343,0.01918193,2935.6,2935.1,1.387e-05]
[1767014450540,0.02219398,2935.6,2935.1,1.387e-05]
[1767014451146,0.02219398,2935.6,2935.0,0.00332238]
[1767014451346,0.01918193,2935.3,2935.0,0.00332238]
[1767014451646,0.00301205,2935.6,2935.0,0.00332238]
[1767014452043,0.00301205,2935.6,2935.0,0.00843625]
[1767014453145,0.3406,2935.5,2935.0,0.00843625]
[1767014453951,0.00511387,2936.1,2935.0,0.00843625]
[1767014454951,0.00824801,2936.1,2935.0,0.00843625]
[1767014456657,0.00824801,2936.1,2934.4,4.27818772]
[1767014456658,1.21692668,2936.0,2934.4,4.27818772]
[1767014456949,0.00824801,2936.1,2934.2,6.28692668]
[1767014457948,0.1705,2936.0,2934.9,0.00511387]
[1767014464461,0.17051,2935.7,2934.2,0.002481]
[1767014465346,0.17051,2935.7,2934.7,0.00511387]
[1767014465545,0.17051,2935.7,2934.7,1.387e-05]
[1767014478469,0.00824801,2936.1,2934.9,1.21699279]
[1767014480071,0.00824801,2936.1,2934.7,1.387e-05]
[1767014480265,0.00824801,2936.1,2934.9,1.21699279]
[1767014483768,1.2252408,2936.1,2934.7,1.387e-05]
[1767014483975,0.17052,2935.7,2934.7,1.387e-05]
[1767014485574,0.17052,2935.6,2934.7,1.387e-05]
[1767014487265,0.17053,2935.5,2934.7,1.387e-05]
[1767014488776,0.17053,2935.4,2934.7,1.387e-05]
[1767014491483,0.17053,2935.4,2934.3,1.21699279]
[1767014491680,0.17053,2935.4,2934.2,0.002481]
[1767014492384,0.17053,2935.4,2934.5,0.00511387]
[1767014493186,0.17054,2935.3,2934.2,0.002481]
[1767014493683,0.17054,2935.2,2934.2,0.002481]
[1767014494275,0.17054,2935.2,2934.4,9.24e-06]
[1767014499086,0.17051,2935.8,2934.4,9.24e-06]
[1767014499488,0.17051,2935.7,2934.4,9.24e-06]
[1767014504191,0.17051,2935.7,2934.5,1.21699279]
[1767014505196,0.17052,2935.6,2934.5,1.21699279]
[1767014505898,0.17052,2935.5,2934.4,9.24e-06]
[1767014511310,0.17052,2935.5,2934.5,1.21699279]
[1767014518305,0.17052,2935.5,2934.7,1.21699279]
[1767014520206,0.17052,2935.5,2934.5,1.21699279]
[1767014520404,0.17053,2935.4,2934.4,9.24e-06]
[1767014522106,0.17053,2935.4,2934.4,1.21700203]
[1767014522707,0.17053,2935.4,2934.4,9.24e-06]
[1767014526314,0.17054,2935.3,2934.4,9.24e-06]
[1767014526912,0.17054,2935.2,2934.4,9.24e-06]
[1767014528011,0.17054,2935.2,2934.4,1.21700203]
[1767014528309,0.17054,2935.2,2934.4,9.24e-06]
[1767014528514,5.534,2935.8,2934.8,1.21699279]
[1767014528715,0.17054,2935.2,2934.8,1.21699279]
[1767014530512,0.17054,2935.2,2934.6,1.21699279]
[1767014531010,0.00824801,2936.1,2935.1,1.21699279]
[1767014531221,0.17051,2935.7,2935.1,1.21699279]
[1767014533325,0.17051,2935.7,2934.9,1.21699279]
[1767014539923,1.27628431,2937.0,2935.5,1.21699279]
[1767014540610,0.05929152,2937.0,2935.0,1.21649207]
[1767014540809,0.00511387,2936.3,2935.7,0.00511387]
[1767014541616,0.17048,2936.2,2934.6,1.21649207]
[1767014542318,0.00511387,2936.3,2934.6,1.21649207]
[1767014542319,0.17049,2936.1,2934.6,1.21649207]
[1767014542621,0.1705,2936.0,2934.3,6.22616551]
[1767014543020,0.1705,2936.0,2934.6,1.21649207]
[1767014544013,0.1705,2936.0,2934.5,5.04]
[1767014546935,0.1705,2936.0,2934.6,1.21649207]
[1767014563851,0.1705,2936.0,2934.2,1.21897307]
[1767014564042,0.1705,2936.0,2934.3,5.035]
[1767014564241,0.1705,2935.9,2934.3,5.035]
[1767014564448,0.17051,2935.7,2934.3,5.035]
[1767014564648,0.17051,2935.7,2934.4,5.035]
[1767014565356,0.17052,2935.5,2934.2,0.002481]
[1767014571159,1.21649207,2935.8,2934.2,0.002481]
[1767014571359,0.17055,2935.2,2934.2,0.002481]
[1767014572254,0.17055,2935.1,2934.2,0.002481]
[1767014572653,0.17055,2935.0,2934.2,0.002481]
[1767014574254,5.53,2936.1,2934.2,0.002481]
[1767014574453,5.54211387,2936.3,2934.2,1.21897307]
[1767014574660,0.17054,2935.3,2934.2,1.21897307]
[1767014575158,0.17054,2935.2,2934.2,1.21897307]
[1767014575554,1.21649207,2936.0,2934.2,0.002481]
[1767014575754,0.17056,2935.0,2934.2,0.002481]
[1767014576067,0.17057,2934.7,2933.0,5.033]
[1767014576362,0.00511387,2934.1,2933.0,5.033]
[1767014576662,0.17057,2934.7,2933.3,1.21649207]
[1767014576849,0.17057,2934.7,2933.3,1.21937946]
[1767014576850,0.17405808,2934.7,2933.3,1.21937946]
[1767014577462,0.17059,2934.4,2933.3,0.00288739]
[1767014577669,0.00511387,2934.1,2933.6,0.00511387]
[1767014581866,0.00511387,2934.1,2933.3,0.00288739]
[1767014582069,0.00511387,2934.1,2933.3,7.7e-06]
[1767014582260,0.17572387,2934.1,2933.3,7.7e-06]
[1767014582568,0.17572387,2934.1,2932.6,5.031]
[1767014583361,0.17572387,2934.1,2932.6,5.0344234]
[1767014584262,0.00511387,2934.1,2932.6,0.0034234]
[1767014585265,0.00511387,2934.1,2932.6,1.21991547]
[1767014589572,0.00511387,2934.1,2933.0,1.21649207]
[1767014592262,0.00511387,2934.1,2932.6,0.0034234]
[1767014592468,0.00511387,2934.1,2932.8,1.21649207]
[1767014598573,0.00511387,2934.1,2933.2,1.21649207]
[1767014598779,0.17059,2934.4,2933.2,1.21649207]
[1767014599680,0.00511387,2934.1,2933.5,0.00511387]
[1767014599870,0.17059,2934.4,2933.5,0.00511387]
[1767014600778,0.00511387,2934.2,2933.5,0.00511387]
[1767014602469,0.00511387,2934.2,2933.7,1.21792873]
[1767014604080,0.00511387,2934.2,2933.5,0.00511387]
[1767014605977,0.3408,2934.1,2933.5,0.00511387]
[1767014609280,0.3408,2934.1,2932.7,1.21792873]
[1767014609482,0.3408,2934.1,2932.6,0.0034234]
[1767014609483,0.17062,2933.9,2932.6,0.0034234]
[1767014609679,0.17062,2933.8,2932.6,0.0034234]
[1767014610381,0.17062,2933.8,2932.9,0.00511387]
[1767014618187,1.38854873,2933.8,2932.9,0.00511387]
[1767014619092,0.17062,2933.8,2932.9,0.00511387]
[1767014620380,0.17062,2933.8,2933.3,1.21792873]
[1767014620581,0.3408,2934.1,2933.0,1.21792873]
[1767014624693,0.51141,2934.1,2933.0,1.21792873]
[1767014625200,0.17061,2934.0,2933.0,1.21792873]
[1767014628592,0.00511387,2934.2,2932.9,0.00511387]
[1767014628798,1.21792873,2933.7,2932.9,0.00511387]
[1767014629298,0.17064,2933.5,2932.9,0.00511387]
[1767014629998,0.17065,2933.4,2932.9,0.00511387]
[1767014630398,0.51155,2933.4,2932.9,0.00511387]
[1767014631897,0.17065,2933.3,2932.9,3.42e-05]
[1767014633399,0.3409,2933.4,2932.9,3.42e-05]
[1767014644998,0.3409,2933.4,2932.9,1.21796293]
[1767014645398,0.3409,2933.4,2932.9,3.42e-05]
[1767014647103,0.3409,2933.4,2932.9,1.21796293]
[1767014647402,0.00511387,2934.2,2933.2,1.21792873]
[1767014647608,0.00348808,2934.7,2933.6,1.21792873]
[1767014647809,0.00348808,2934.7,2933.9,1.21792873]
[1767014648710,0.00511387,2934.6,2933.6,1.21792873]
[1767014660312,0.00511387,2934.6,2933.0,6.39959873]
[1767014660516,0.00511387,2934.6,2933.7,1.21792873]
[1767014660823,0.00511387,2934.6,2933.0,6.39959873]
[1767014661018,0.00511387,2934.6,2933.6,1.21792873]
[1767014662221,0.17569387,2934.6,2933.4,1.21792873]
[1767014664622,0.17569387,2934.6,2933.0,6.3996609]
[1767014675442,0.17569387,2934.6,2933.0,5.18167]
[1767014677639,0.17569387,2934.6,2933.0,9.45985772]
[1767014677941,0.17569387,2934.6,2933.0,5.18167]
[1767014678138,0.17569387,2934.6,2933.0,0.17067]
[1767014678346,0.17569387,2934.6,2933.1,5.01]